fUSD/lending_fUSD_20260407
["ID","MTS","AMOUNT","RATE_DAILY","PERIOD"]
[419984073,1775584246551,-1600.0,0.00014927,2]
[419984074,1775584246560,-150.0,0.00014933,2]
[419984075,1775584246569,-1563.0514107,0.00014954,2]
[419984076,1775584246579,-150.0,0.00014965,2]
[419984077,1775584246589,-504.0,0.0001498,2]
[419984078,1775584246599,-3292.0,0.0001498,2]
[419984079,1775584246609,-150.0,0.00014982,2]
[419984080,1775584246618,-150.0,0.00014982,2]
[419984081,1775584246628,-785.92,0.00014989,2]
[419984082,1775584246637,-4608.0,0.00014991,2]
[419984083,1775584246648,-558.66,0.00014999,2]
[419984084,1775584246658,-500.0,0.00014999,2]
[419984085,1775584246667,-517.21055633,0.00014999,2]
[419984086,1775584246677,-500.0,0.00014999,2]
[419984087,1775584246686,-500.0,0.00014999,2]
[419984088,1775584246696,-288.0,0.00015,2]
[419984089,1775584246706,-899.0,0.00015,2]
[419984090,1775584246715,-342956.12,0.00015,2]
[419984091,1775584246725,-6096.0,0.00015,2]
[419984092,1775584246735,-150.0,0.00015,2]
[419984093,1775584246745,-150.0,0.00015,2]
[419984094,1775584246755,-150.0,0.00015002,2]
[419984095,1775584246765,-150.0,0.0001501,2]
[419984096,1775584246774,-327.74,0.00015014,2]
[419984097,1775584246784,-150.0,0.00015015,2]
[419984098,1775584246794,-2500.0,0.00015021,2]
[419984099,1775584246803,-1573.0,0.0001504,2]
[419984100,1775584246812,-1573.0,0.0001504,2]
[419984101,1775584246822,-1573.0,0.0001504,2]
[419984102,1775584246832,-150.0,0.0001504,2]
[419984103,1775584246842,-150.0,0.0001504,2]
[419984104,1775584246852,-150.0,0.00015055,2]
[419984105,1775584246862,-2189.53,0.00015057,2]
[419984106,1775584246872,-150.0,0.00015059,2]
[419984107,1775584246882,-493.54914906,0.00015068,2]
[419984108,1775584246892,-150.0,0.00015086,2]
[419984109,1775584246901,-187.5635,0.000151,2]
[419984110,1775584246911,-501.0,0.00015127,3]
[419984111,1775584246921,-150.0,0.00015127,2]
[419984112,1775584246930,-150.0,0.00015127,2]
[419984113,1775584246940,-150.0,0.00015138,2]
[419984114,1775584246950,-1043.0,0.00015152,2]
[419984115,1775584247289,-150.0,0.00015153,2]
[419984116,1775584247299,-150.0,0.00015162,2]
[419984117,1775584247309,-247.17102033,0.00015168,2]
[419984118,1775584247319,-1043.0,0.00015177,2]
[419984119,1775584247328,-4608.0,0.00015186,2]
[419984120,1775584247338,-150.0,0.000152,2]
[419984121,1775584247348,-150.0,0.000152,2]
[419984122,1775584247358,-150.0,0.000152,2]
[419984123,1775584247368,-150.0,0.000152,2]
[419984124,1775584247378,-150.0,0.000152,2]
[419984125,1775584247389,-10000.0,0.00015205,2]
[419984126,1775584247399,-245.11,0.00015223,2]
[419984127,1775584247409,-1961.0,0.00015236,2]
[419984128,1775584247419,-150.0,0.00015238,2]
[419984129,1775584247429,-150.0,0.00015247,2]
[419984130,1775584247438,-1961.0,0.0001525,2]
[419984131,1775584247448,-150.0,0.00015262,2]
[419984132,1775584247458,-209.92,0.00015263,2]
[419984133,1775584247468,-150.0,0.00015273,2]
[419984134,1775584247477,-150.0,0.00015273,2]
[419984135,1775584247487,-245.1,0.00015276,2]
[419984136,1775584247497,-2000.0,0.00015295,2]
[419984137,1775584247507,-3667.82476707,0.00015297,2]
[419984138,1775584247517,-1961.0,0.0001531,2]
[419984139,1775584247526,-150.0,0.00015314,2]
[419984140,1775584247536,-332.93807702,0.00015318,2]
[419984141,1775584247546,-1027.52150985,0.0001532,2]
[419984142,1775584247556,-293.86819805,0.0001532,2]
[419984143,1775584247566,-150.0,0.00015341,2]
[419984144,1775584247575,-2000.0,0.00015342,2]
[419984145,1775584247586,-150.0,0.00015345,2]
[419984146,1775584247595,-871.95012592,0.00015352,2]
[419984147,1775584247605,-162.0,0.0001536,2]
[419984148,1775584247615,-2812.0,0.0001536,2]
[419984149,1775584247625,-1573.0,0.0001536,2]
[419984150,1775584247635,-1570.0,0.0001536,2]
[419984151,1775584247645,-150.0,0.0001536,2]
[419984152,1775584247655,-150.0,0.0001536,2]
[419984153,1775584247666,-8425.49894113,0.00015372,2]
[419984154,1775584247676,-1961.0,0.00015382,2]
[419984155,1775584247686,-150.0,0.00015385,2]
[419984156,1775584247695,-150.0,0.0001539,2]
[419984157,1775584247704,-1328.27659266,0.00015397,2]
[419984158,1775584247714,-187.78006525,0.00015397,2]
[419984159,1775584247724,-150.0,0.000154,2]
[419984160,1775584247733,-150.0,0.000154,2]
[419984161,1775584247743,-5583.43348571,0.00015406,2]
[419984162,1775584247752,-8283.58780168,0.00015406,2]
[419984163,1775584247762,-13283.3337868,0.00015411,2]
[419984164,1775584247771,-150.0,0.00015418,2]
[419984165,1775584247781,-150.0,0.00015418,2]
[419984166,1775584247791,-1961.0,0.00015419,2]
[419984167,1775584247801,-150.0,0.00015435,2]
[419984168,1775584247811,-1961.0,0.00015456,2]
[419984169,1775584247821,-150.0,0.00015467,2]
[419984170,1775584247832,-150.0,0.00015491,2]
[419984171,1775584247841,-558.66,0.00015499,2]
[419984172,1775584247851,-500.0,0.00015499,2]
[419984173,1775584247861,-150.0,0.00015508,2]
[419984174,1775584247870,-1961.0,0.00015509,2]
[419984175,1775584247880,-622.0,0.00015511,2]
[419984176,1775584247890,-1050.137,0.00015511,2]
[419984177,1775584247900,-3524.0,0.00015511,2]
[419984178,1775584247910,-276.717,0.00015511,2]
[419984179,1775584247920,-1264.0,0.00015511,2]
[419984180,1775584247929,-1217.0,0.00015511,2]
[419984181,1775584247939,-415.0,0.00015511,2]
[419984182,1775584247949,-2471.0,0.00015511,2]
[419984183,1775584247958,-1961.0,0.00015519,2]
[419984184,1775584247968,-150.0,0.0001552,2]
[419984185,1775584247977,-150.0,0.00015529,2]
[419984186,1775584247987,-500.0,0.00015539,2]
[419984187,1775584247996,-500.0,0.00015539,2]
[419984188,1775584248006,-500.0,0.00015539,2]
[419984189,1775584248016,-150.0,0.00015543,2]
[419984190,1775584248026,-150.0,0.00015564,2]
[419984191,1775584248036,-150.0,0.00015564,2]
[419984192,1775584248046,-1961.0,0.00015566,2]
[419984193,1775584248055,-155.26329613,0.00015568,2]
[419984194,1775584248064,-3000.0,0.00015569,2]
[419984195,1775584248074,-150.0,0.000156,2]
[419984196,1775584248083,-150.0,0.000156,2]
[419984197,1775584248093,-218.49,0.00015604,2]
[419984198,1775584248103,-332.93807701,0.00015609,2]
[419984199,1775584248113,-157.4186019,0.00015612,2]
[419984200,1775584248123,-150.0,0.00015612,2]
[419984201,1775584248133,-150.0,0.00015619,2]
[419984202,1775584248143,-150.0,0.00015624,2]
[419984203,1775584248153,-10000.0,0.00015626,2]
[419984204,1775584248162,-150.0,0.00015631,2]
[419984205,1775584248172,-150.0,0.00015631,2]
[419984206,1775584248182,-150.0,0.00015631,2]
[419984207,1775584248192,-150.0,0.00015631,2]
[419984208,1775584248202,-150.0,0.00015631,2]
[419984209,1775584248212,-150.0,0.00015631,2]
[419984210,1775584248222,-259.0,0.00015631,2]
[419984211,1775584248232,-150.0,0.00015631,2]
[419984212,1775584248241,-150.0,0.00015636,2]
[419984213,1775584248252,-13283.3337868,0.00015656,2]
[419984214,1775584248262,-1165.06925813,0.0001568,2]
[419984215,1775584248275,-2079.0,0.0001568,2]
[419984216,1775584248286,-150.0,0.0001568,2]
[419984217,1775584248295,-150.0,0.0001568,2]
[419984218,1775584248305,-218.49,0.00015688,2]
[419984219,1775584248315,-150.0,0.00015695,2]
[419984220,1775584248326,-150.0,0.00015709,2]
[419984221,1775584248336,-150.0,0.00015709,2]
[419984222,1775584248346,-150.0,0.00015718,2]
[419984223,1775584248355,-500.0,0.00015744,2]
[419984224,1775584248365,-150.0,0.00015754,2]
[419984225,1775584248375,-1961.0,0.00015762,2]
[419984226,1775584248386,-150.0,0.00015771,2]
[419984227,1775584248395,-150.0,0.00015782,2]
[419984228,1775584248405,-5000.0,0.000158,2]
[419984229,1775584248415,-150.0,0.000158,2]
[419984230,1775584248425,-150.0,0.000158,2]
[419984231,1775584248435,-1509.68129686,0.000158,2]
[419984232,1775584248444,-1961.0,0.00015804,2]
[419984233,1775584248453,-150.0,0.00015812,2]
[419984234,1775584248463,-1961.0,0.00015816,2]
[419984235,1775584248474,-10000.0,0.0001584,2]
[419984236,1775584248484,-150.0,0.0001584,2]
[419984237,1775584248493,-1099.55468,0.0001584,2]
[419984238,1775584248504,-1099.55469,0.0001584,2]
[419984239,1775584248513,-150.0,0.0001584,2]
[419984240,1775584248523,-150.0,0.0001584,2]
[419984241,1775584248533,-150.0,0.0001584,2]
[419984242,1775584248543,-150.0,0.0001584,2]
[419984243,1775584248553,-150.0,0.0001584,2]
[419984244,1775584248563,-250.0,0.0001584,2]
[419984245,1775584248573,-42892.25216829,0.0001584,2]
[419984246,1775584248583,-150.0,0.00015848,2]
[419984247,1775584248592,-1099.55469,0.0001585,2]
[419984248,1775584248602,-150.0,0.00015855,2]
[419984249,1775584248612,-150.0,0.00015855,2]
[419984250,1775584248623,-1271.987399,0.00015876,7]
[419984251,1775584248633,-150.0,0.00015877,2]
[419984252,1775584248643,-2500.0,0.0001589,2]
[419984253,1775584248653,-500.0,0.00015899,2]
[419984254,1775584248664,-5800.0,0.000159,2]
[419984255,1775584248673,-247.17102033,0.000159,2]
[419984257,1775584248684,-150.0,0.000159,2]
[419984259,1775584248694,-5583.43348571,0.000159,2]
[419984261,1775584248704,-150.73007208,0.000159,2]
[419984263,1775584248714,-8283.58780168,0.000159,2]
[419984265,1775584248724,-332.93807701,0.000159,2]
[419984267,1775584248734,-13283.3337868,0.000159,2]
[419984269,1775584248743,-1824.0,0.000159,5]
[419984271,1775584248753,-1469.0,0.000159,5]
[419984273,1775584248763,-2000.0,0.000159,2]
[419984275,1775584248773,-150.0,0.00015906,2]
[419984277,1775584248783,-487.060095,0.00015906,7]
[419984279,1775584248793,-150.0,0.00015924,2]
[419984280,1775584248803,-150.0,0.00015927,2]
[419984283,1775584248813,-250.0,0.0001594,2]
[419984284,1775584248823,-1377.42282659,0.00015945,2]
[419984286,1775584248833,-194.72792766,0.00015945,2]
[419984289,1775584248843,-3944.60426501,0.0001596,2]
[419984291,1775584248853,-500.0,0.00015973,2]
[419984293,1775584248864,-500.0,0.00015973,2]
[419984295,1775584248873,-500.0,0.00015973,2]
[419984297,1775584248883,-204.20995808,0.00015973,2]
[419984299,1775584248893,-500.0,0.00015973,2]
[419984301,1775584248903,-500.0,0.00015973,2]
[419984302,1775584248913,-500.0,0.00015973,2]
[419984305,1775584248924,-501.15528653,0.00015973,2]
[419984307,1775584248934,-500.0,0.00015973,2]
[419984309,1775584248944,-500.0,0.00015973,2]
[419984311,1775584248954,-500.0,0.00015973,2]
[419984313,1775584248964,-500.0,0.00015973,2]
[419984315,1775584248975,-500.0,0.00015973,2]
[419984317,1775584248986,-500.0,0.00015973,2]
[419984319,1775584248996,-500.55949721,0.00015973,2]
[419984321,1775584249007,-500.0,0.00015973,2]
[419984323,1775584249017,-500.0,0.00015973,2]
[419984325,1775584249027,-500.0,0.00015973,2]
[419984327,1775584249037,-500.0,0.00015973,2]
[419984329,1775584249047,-500.0,0.00015973,2]
[419984332,1775584249056,-500.0,0.00015973,2]
[419984334,1775584249067,-500.0,0.00015973,2]
[419984336,1775584249076,-500.0,0.00015973,2]
[419984337,1775584249086,-500.27198937,0.00015973,2]
[419984339,1775584249096,-500.0,0.00015973,2]
[419984341,1775584249105,-500.78094914,0.00015973,2]
[419984343,1775584249114,-500.0,0.00015973,2]
[419984346,1775584249125,-500.0,0.00015973,2]
[419984348,1775584249135,-500.0,0.00015973,2]
[419984349,1775584249145,-500.0,0.00015973,2]
[419984352,1775584249155,-500.0,0.00015973,2]
[419984354,1775584249164,-500.0,0.00015973,2]
[419984356,1775584249174,-500.0,0.00015973,2]
[419984358,1775584249185,-176.94787588,0.0001598,2]
[419984360,1775584249194,-191.37998127,0.00015984,2]
[419984362,1775584249205,-35718.0219715,0.00015987,2]
[419984364,1775584249215,-3293.5015163,0.00015987,2]
[419984365,1775584249224,-943.604577,0.00015987,2]
[419984366,1775584249234,-154.56878894,0.0001599,2]
[419984367,1775584249245,-154.56878894,0.0001599,2]
[419984369,1775584249254,-151.0,0.00015997,2]
[419984371,1775584249264,-500.0,0.00015998,2]
[419984373,1775584249274,-558.66,0.00015998,2]
[419984375,1775584249285,-500.0,0.00015998,2]
[419984376,1775584249295,-666.0,0.00015999,2]
[419984378,1775584249305,-666.0,0.00015999,2]
[419984380,1775584249315,-666.0,0.00015999,2]
[419984381,1775584249325,-500.0,0.00015999,2]
[419984382,1775584249334,-500.0,0.00015999,2]
[419984384,1775584249345,-500.0,0.00015999,2]
[419984386,1775584249355,-500.0,0.00015999,2]
[419984388,1775584249365,-500.0,0.00015999,2]
[419984390,1775584249375,-500.0,0.00015999,2]
[419984391,1775584249384,-500.0,0.00015999,2]
[419984393,1775584249394,-623.26,0.00015999,2]
[419984394,1775584249404,-500.0,0.00015999,2]
[419984395,1775584249414,-500.0,0.00015999,2]
[419984396,1775584249424,-500.0,0.00015999,2]
[419984397,1775584249435,-500.0,0.00015999,2]
[419984398,1775584249445,-500.0,0.00015999,2]
[419984399,1775584249456,-500.0,0.00015999,2]
[419984400,1775584249466,-500.0,0.00015999,2]
[419984401,1775584249475,-500.0,0.00015999,2]
[419984402,1775584249485,-500.0,0.00015999,2]
[419984403,1775584249495,-500.0,0.00015999,2]
[419984404,1775584249505,-500.0,0.00015999,2]
[419984405,1775584249514,-500.0,0.00015999,2]
[419984406,1775584249524,-500.0,0.00015999,2]
[419984407,1775584249535,-500.0,0.00015999,2]
[419984408,1775584249545,-500.0,0.00015999,2]
[419984409,1775584249554,-500.0,0.00015999,2]
[419984410,1775584249564,-500.0,0.00015999,2]
[419984411,1775584249573,-500.0,0.00015999,2]
[419984412,1775584249583,-500.0,0.00015999,2]
[419984413,1775584249592,-500.0,0.00015999,2]
[419984414,1775584249603,-500.0,0.00015999,2]
[419984415,1775584249612,-500.0,0.00015999,2]
[419984416,1775584249622,-449.48,0.00015999,2]
[419984417,1775584249633,-500.0,0.00015999,2]
[419984418,1775584249643,-500.0,0.00015999,2]
[419984419,1775584249652,-500.0,0.00015999,2]
[419984420,1775584249662,-500.0,0.00015999,2]
[419984421,1775584249671,-500.0,0.00015999,2]
[419984422,1775584249680,-500.0,0.00015999,2]
[419984423,1775584249689,-500.0,0.00015999,2]
[419984424,1775584249699,-500.0,0.00015999,2]
[419984425,1775584249709,-500.0,0.00015999,2]
[419984426,1775584249718,-500.0,0.00015999,2]
[419984427,1775584249728,-500.0,0.00015999,2]
[419984428,1775584249737,-500.0,0.00015999,2]
[419984429,1775584249746,-500.0,0.00015999,2]
[419984430,1775584249756,-500.0,0.00015999,2]
[419984431,1775584249765,-574.88,0.00015999,2]
[419984432,1775584249775,-558.66,0.00015999,2]
[419984433,1775584249785,-558.66,0.00015999,2]
[419984434,1775584249795,-558.66,0.00015999,2]
[419984435,1775584249805,-558.66,0.00015999,2]
[419984436,1775584249814,-558.66,0.00015999,2]
[419984437,1775584249824,-558.66,0.00015999,2]
[419984438,1775584249834,-558.87,0.00015999,2]
[419984439,1775584249844,-500.0,0.00015999,2]
[419984440,1775584249853,-500.0,0.00015999,2]
[419984441,1775584249863,-500.0,0.00015999,2]
[419984442,1775584249873,-500.0,0.00015999,2]
[419984443,1775584249883,-500.0,0.00015999,2]
[419984444,1775584249894,-500.0,0.00015999,2]
[419984445,1775584249904,-288.95,0.00015999,2]
[419984446,1775584249914,-500.0,0.00015999,2]
[419984447,1775584249924,-500.0,0.00015999,2]
[419984448,1775584249934,-500.0,0.00015999,2]
[419984449,1775584249943,-500.0,0.00015999,2]
[419984450,1775584249953,-500.0,0.00015999,2]
[419984451,1775584249963,-150.0,0.00015999,2]
[419984452,1775584249972,-150.0,0.00015999,2]
[419984453,1775584249982,-150.0,0.00015999,2]
[419984454,1775584249992,-150.0,0.00015999,2]
[419984455,1775584250002,-150.0,0.00015999,2]
[419984456,1775584250012,-150.0,0.00015999,2]
[419984457,1775584250023,-150.0,0.00015999,2]
[419984458,1775584250033,-150.0,0.00015999,2]
[419984459,1775584250043,-179.55299746,0.00015999,2]
[419984460,1775584250053,-245.0843554,0.00016,2]
[419984461,1775584250062,-183.96136343,0.00016,2]
[419984462,1775584250072,-224.88397604,0.00016,2]
[419984463,1775584250082,-152.61372689,0.00016,2]
[419984464,1775584250091,-151.22967101,0.00016,2]
[419984465,1775584250101,-272.54305017,0.00016,2]
[419984466,1775584250111,-150.0,0.00016,2]
[419984467,1775584250120,-234.65590515,0.00016,2]
[419984468,1775584250130,-150.0,0.00016,2]
[419984469,1775584250140,-150.00000001,0.00016,2]
[419984470,1775584250150,-267.10584669,0.00016,2]
[419984471,1775584250160,-151.75828688,0.00016,2]
[419984472,1775584250170,-2580987.37049437,0.00016,2]
[419984473,1775584252153,-3772.0,0.00015511,2]
[419984474,1775584252163,-3667.82476707,0.00015599,2]
[419984475,1775584252172,-96799.64068187,0.00016,2]
[419984476,1775584252182,-5336.99557971,0.00016,2]
[419984477,1775584252192,-500.0,0.00016,2]
[419984478,1775584252202,-500.0,0.00016,2]
[419984479,1775584252212,-500.0,0.00016,2]
[419984480,1775584252221,-500.0,0.00016,2]
[419984481,1775584252231,-500.0,0.00016,2]
[419984482,1775584252240,-500.0,0.00016,2]
[419984483,1775584252250,-500.0,0.00016,2]
[419984484,1775584252260,-500.0,0.00016,2]
[419984485,1775584252270,-500.0,0.00016,2]
[419984486,1775584252280,-500.0,0.00016,2]
[419984487,1775584252290,-500.0,0.00016,2]
[419984488,1775584252300,-500.0,0.00016,2]
[419984489,1775584252309,-500.0,0.00016,2]
[419984490,1775584252319,-500.0,0.00016,2]
[419984491,1775584252329,-500.0,0.00016,2]
[419984492,1775584252338,-500.0,0.00016,2]
[419984493,1775584252349,-500.0,0.00016,2]
[419984494,1775584252359,-500.0,0.00016,2]
[419984495,1775584252368,-500.0,0.00016,2]
[419984496,1775584252379,-500.0,0.00016,2]
[419984497,1775584252388,-500.0,0.00016,2]
[419984498,1775584252398,-500.0,0.00016,2]
[419984499,1775584252408,-500.0,0.00016,2]
[419984500,1775584252419,-500.0,0.00016,2]
[419984501,1775584252428,-500.0,0.00016,2]
[419984502,1775584252438,-500.0,0.00016,2]
[419984503,1775584252448,-500.0,0.00016,2]
[419984504,1775584252459,-197.3,0.00016,2]
[419984505,1775584252469,-2000.0,0.00016,2]
[419984506,1775584252479,-219041.23897167,0.00016,2]
[419984507,1775584252498,-3200.0,0.00016,2]
[419984508,1775584252554,-150.0,0.000159,2]
[419984509,1775584252564,-15483.17424791,0.00016,2]
[419984510,1775584252576,-1607.59263891,0.00016,2]
[419984511,1775584252588,-716.54260804,0.00016,2]
[419984512,1775584252612,-16108.4918215,0.00016,2]
[419984513,1775584252694,-2395.19041012,0.00016,2]
[419984514,1775584253065,-403.64867383,0.00016,2]
[419984515,1775584253077,-340.8399626,0.00016,2]
[419984516,1775584255000,-10743501.28390263,0.00016,2]
[419984517,1775584255010,-400.31682988,0.00016,2]
[419984518,1775584255020,-15712.93018358,0.00016,2]
[419984519,1775584255030,-3309.48290848,0.00016,2]
[419984520,1775584255040,-6723761.7675446,0.00016,2]
[419984521,1775584255050,-378.73889738,0.00016,2]
[419984522,1775584255060,-1473.73853004,0.00016,2]
[419984523,1775584255069,-200.0,0.00016,2]
[419984524,1775584255078,-151.0,0.00016,2]
[419984525,1775584255088,-151.0,0.00016,2]
[419984526,1775584255098,-151.0,0.00016,2]
[419984527,1775584255107,-151.0,0.00016,2]
[419984528,1775584255117,-151.0,0.00016,2]
[419984529,1775584255127,-151.0,0.00016,2]
[419984530,1775584255137,-151.0,0.00016,2]
[419984531,1775584255148,-151.0,0.00016,2]
[419984532,1775584255158,-152.065096,0.00016,2]
[419984533,1775584255168,-151.0,0.00016,2]
[419984534,1775584255178,-151.0,0.00016,2]
[419984535,1775584255188,-151.0,0.00016,2]
[419984536,1775584255197,-161.866912,0.00016,2]
[419984537,1775584255207,-151.0,0.00016,2]
[419984538,1775584255216,-151.0,0.00016,2]
[419984539,1775584255226,-151.0,0.00016,2]
[419984540,1775584255236,-2000.0,0.00016,2]
[419984541,1775584255246,-200.0,0.00016,2]
[419984542,1775584255256,-151.0,0.00016,2]
[419984543,1775584255266,-151.0,0.00016,2]
[419984544,1775584255276,-151.0,0.00016,2]
[419984545,1775584255285,-155.988501,0.00016,2]
[419984546,1775584255295,-151.0,0.00016,2]
[419984547,1775584255304,-151.0,0.00016,2]
[419984548,1775584255314,-151.0,0.00016,2]
[419984549,1775584255324,-151.0,0.00016,2]
[419984550,1775584255333,-151.0,0.00016,2]
[419984551,1775584255343,-151.0,0.00016,2]
[419984552,1775584255352,-172.069155,0.00016,2]
[419984553,1775584255362,-151.0,0.00016,2]
[419984554,1775584255371,-151.0,0.00016,2]
[419984555,1775584255381,-151.0,0.00016,2]
[419984556,1775584255391,-151.0,0.00016,2]
[419984557,1775584255400,-151.0,0.00016,2]
[419984558,1775584255410,-151.0,0.00016,2]
[419984559,1775584255420,-157.308111,0.00016,2]
[419984560,1775584255430,-379.129771,0.00016,2]
[419984561,1775584255440,-151.0,0.00016,2]
[419984562,1775584255450,-151.0,0.00016,2]
[419984563,1775584255460,-379.129771,0.00016,2]
[419984564,1775584255469,-219.835034,0.00016,2]
[419984565,1775584255479,-379.129771,0.00016,2]
[419984566,1775584255489,-196.046925,0.00016,2]
[419984567,1775584255499,-379.129771,0.00016,2]
[419984568,1775584255510,-196.046925,0.00016,2]
[419984569,1775584255520,-390.856479,0.00016,2]
[419984570,1775584255530,-151.0,0.00016,2]
[419984571,1775584255540,-151.0,0.00016,2]
[419984572,1775584255550,-196.046925,0.00016,2]
[419984573,1775584255560,-390.856479,0.00016,2]
[419984574,1775584255570,-196.046925,0.00016,2]
[419984575,1775584255580,-390.856479,0.00016,2]
[419984576,1775584255590,-390.856479,0.00016,2]
[419984577,1775584255600,-160.905622,0.00016,2]
[419984578,1775584255610,-151.0,0.00016,2]
[419984579,1775584255620,-157.618458,0.00016,2]
[419984580,1775584255630,-151.0,0.00016,2]
[419984581,1775584255640,-157.618458,0.00016,2]
[419984582,1775584255650,-151.0,0.00016,2]
[419984583,1775584255660,-151.0,0.00016,2]
[419984584,1775584255670,-157.618458,0.00016,2]
[419984585,1775584255680,-151.0,0.00016,2]
[419984586,1775584255690,-157.618458,0.00016,2]
[419984587,1775584255700,-220.829534,0.00016,2]
[419984588,1775584255709,-220.829534,0.00016,2]
[419984589,1775584255719,-220.829534,0.00016,2]
[419984590,1775584255728,-220.829534,0.00016,2]
[419984591,1775584255738,-151.0,0.00016,2]
[419984592,1775584255747,-151.0,0.00016,2]
[419984593,1775584255758,-151.0,0.00016,2]
[419984594,1775584255768,-151.0,0.00016,2]
[419984595,1775584255780,-151.0,0.00016,2]
[419984596,1775584255790,-151.0,0.00016,2]
[419984597,1775584255800,-151.0,0.00016,2]
[419984598,1775584255810,-151.0,0.00016,2]
[419984599,1775584255820,-152.887317,0.00016,2]
[419984600,1775584255831,-151.0,0.00016,2]
[419984601,1775584255840,-152.073864,0.00016,2]
[419984602,1775584255850,-151.0,0.00016,2]
[419984603,1775584255860,-151.0,0.00016,2]
[419984604,1775584255869,-151.0,0.00016,2]
[419984605,1775584255879,-151.0,0.00016,2]
[419984606,1775584255888,-232.189529,0.00016,2]
[419984607,1775584255898,-151.0,0.00016,2]
[419984608,1775584255908,-151.0,0.00016,2]
[419984609,1775584255917,-151.0,0.00016,2]
[419984610,1775584255927,-151.0,0.00016,2]
[419984611,1775584255936,-151.0,0.00016,2]
[419984612,1775584255946,-151.0,0.00016,2]
[419984613,1775584255955,-151.0,0.00016,2]
[419984614,1775584255964,-151.0,0.00016,2]
[419984615,1775584255974,-151.0,0.00016,2]
[419984616,1775584255983,-151.0,0.00016,2]
[419984617,1775584255992,-151.0,0.00016,2]
[419984618,1775584256002,-151.0,0.00016,2]
[419984619,1775584256012,-151.0,0.00016,2]
[419984620,1775584256022,-151.0,0.00016,2]
[419984621,1775584256032,-151.0,0.00016,2]
[419984622,1775584256042,-151.0,0.00016,2]
[419984623,1775584256051,-151.0,0.00016,2]
[419984624,1775584256061,-151.0,0.00016,2]
[419984625,1775584256070,-151.0,0.00016,2]
[419984626,1775584256080,-280.027732,0.00016,2]
[419984627,1775584256089,-151.0,0.00016,2]
[419984628,1775584256098,-151.0,0.00016,2]
[419984629,1775584256107,-151.0,0.00016,2]
[419984630,1775584256116,-151.0,0.00016,2]
[419984631,1775584256126,-175.359448,0.00016,2]
[419984632,1775584256135,-151.0,0.00016,2]
[419984633,1775584256144,-151.0,0.00016,2]
[419984634,1775584256154,-399.955189,0.00016,2]
[419984635,1775584256163,-151.0,0.00016,2]
[419984636,1775584256173,-399.955189,0.00016,2]
[419984637,1775584256183,-151.0,0.00016,2]
[419984638,1775584256192,-399.955189,0.00016,2]